fUST/lending_fUST_20260107
["ID","MTS","AMOUNT","RATE_DAILY","PERIOD"]
[400649625,1767766240935,-323.0,0.00018654,2]
[400649626,1767766240944,-334.40005843,0.00018749,2]
[400649627,1767766240955,-5500.0,0.00018752,2]
[400649628,1767766240965,-303.45210145,0.000189,2]
[400649629,1767766240975,-157.0,0.00019041,3]
[400649630,1767766240986,-882.2314,0.00019178,2]
[400649631,1767766240995,-882.2314,0.00019178,4]
[400649632,1767766241005,-900.0,0.00019178,2]
[400649633,1767766241016,-167.78,0.000192,2]
[400649634,1767766241026,-2200.51,0.000192,2]
[400649635,1767766241035,-25963.54,0.000192,2]
[400649636,1767766241045,-243.07,0.000192,2]
[400649637,1767766241054,-258.12,0.000192,2]
[400649638,1767766241063,-6000.0,0.000193,2]
[400649639,1767766241073,-8045.68317556,0.00019534,2]
[400649640,1767766241082,-1000.0,0.00019665,2]
[400649641,1767766241092,-244.0,0.00019665,2]
[400649642,1767766241102,-1549.57669197,0.00019726,2]
[400649643,1767766241112,-8000.0,0.000198,2]
[400649644,1767766241122,-6500.0,0.00019848,2]
[400649645,1767766241132,-346.1,0.00019962,2]
[400649646,1767766241142,-1972.0,0.0002,2]
[400649647,1767766241151,-181.25348447,0.0002,2]
[400649648,1767766241160,-1005.0,0.0002,6]
[400649649,1767766241169,-1150.00723969,0.00020056,11]
[400649650,1767766241179,-5002.67735813,0.00020396,2]
[400649651,1767766241188,-1804.735681,0.00020548,2]
[400649652,1767766241199,-373.48577955,0.00020749,2]
[400649653,1767766241208,-283.8,0.00021043,2]
[400649654,1767766241218,-168.0,0.00021233,4]
[400649655,1767766241228,-545.0,0.00021328,2]
[400649656,1767766241238,-545.0,0.00021423,2]
[400649657,1767766241247,-545.0,0.00021427,2]
[400649658,1767766241257,-1386.32863216,0.00021489,14]
[400649659,1767766241267,-346.1,0.00021552,2]
[400649660,1767766241276,-1000.0,0.00021632,10]
[400649661,1767766241286,-492.0,0.00021632,10]
[400649662,1767766241295,-545.0,0.0002171,2]
[400649663,1767766241305,-545.0,0.00021739,2]
[400649664,1767766241314,-545.0,0.00021787,2]
[400649665,1767766241324,-252.19,0.00022,2]
[400649666,1767766241334,-2200.51,0.00022,14]
[400649667,1767766241343,-25963.54,0.00022,2]
[400649668,1767766241352,-258.12,0.00022,7]
[400649669,1767766241361,-243.07,0.00022,7]
[400649670,1767766241371,-1908.17,0.00022,7]
[400649671,1767766241380,-15000.0,0.00022,2]
[400649672,1767766241390,-545.0,0.00022026,2]
[400649673,1767766241399,-545.0,0.00022061,2]
[400649674,1767766241408,-8045.68317556,0.00022082,2]
[400649675,1767766241418,-545.0,0.00022105,2]
[400649676,1767766241427,-545.0,0.00022131,2]
[400649677,1767766241444,-545.0,0.00022131,2]
[400649678,1767766241458,-545.0,0.00022134,2]
[400649679,1767766241468,-545.0,0.00022188,2]
[400649680,1767766241477,-545.0,0.00022246,2]
[400649681,1767766241486,-545.0,0.00022347,2]
[400649682,1767766241495,-545.0,0.00022395,2]
[400649683,1767766241505,-300.0,0.00022466,2]
[400649684,1767766241514,-412.57150066,0.00022749,2]
[400649685,1767766241524,-187.20106237,0.00022833,2]
[400649686,1767766241535,-545.0,0.00022833,2]
[400649687,1767766241544,-545.0,0.00022844,2]
[400649688,1767766241554,-1635.73461427,0.00022922,17]
[400649689,1767766241563,-450.0,0.00023014,2]
[400649690,1767766241573,-545.0,0.00023136,2]
[400649691,1767766241583,-346.1,0.00023143,2]
[400649692,1767766241593,-545.0,0.00023144,2]
[400649693,1767766241603,-545.0,0.00023197,2]
[400649694,1767766241613,-2000.0,0.00023215,7]
[400649695,1767766241623,-545.0,0.00023272,2]
[400649696,1767766241633,-545.0,0.00023452,2]
[400649697,1767766241643,-545.0,0.00023498,2]
[400649698,1767766241652,-545.0,0.00023514,2]
[400649699,1767766241663,-2200.0,0.00023519,2]
[400649700,1767766241673,-600.0,0.00023562,2]
[400649701,1767766241683,-2200.0,0.00023646,2]
[400649702,1767766241693,-1000.0,0.00023795,10]
[400649703,1767766241704,-791.0,0.00023795,10]
[400649704,1767766241713,-1488.3780018,0.00023852,2]
[400649705,1767766241724,-3246.90317033,0.00024,2]
[400649706,1767766241734,-466.31971814,0.00024,2]
[400649707,1767766241746,-1865.27887255,0.00024,2]
[400649708,1767766241756,-4196.87746323,0.00024,2]
[400649709,1767766241767,-7461.11549019,0.00024,2]
[400649710,1767766241776,-833.65355778,0.00024,2]
[400649711,1767766241786,-3334.61423112,0.00024,2]
[400649712,1767766241796,-7502.88202001,0.00024,2]
[400649713,1767766241806,-812.53833091,0.00024,2]
[400649714,1767766241815,-2000.0,0.00024054,7]
[400649715,1767766241824,-750.0,0.0002411,2]
[400649716,1767766241834,-500.0,0.00024111,2]
[400649717,1767766241844,-1908.17,0.000242,7]
[400649718,1767766241853,-1897.17449687,0.00024355,19]
[400649719,1767766241863,-172.0,0.00024521,13]
[400649720,1767766241872,-500.0,0.0002461,2]
[400649721,1767766241882,-8045.68317556,0.00024631,2]
[400649722,1767766241898,-900.0,0.00024658,2]
[400649723,1767766241907,-500.0,0.00024658,2]
[400649724,1767766241917,-2200.0,0.00024693,2]
[400649725,1767766241928,-258.12,0.000247,7]
[400649726,1767766241939,-243.07,0.000247,7]
[400649727,1767766241951,-15924.41,0.000247,3]
[400649728,1767766241961,-2200.0,0.00024732,2]
[400649729,1767766241972,-346.1,0.00024733,2]
[400649730,1767766241982,-451.65722178,0.00024749,2]
[400649731,1767766241992,-500.0,0.00024754,2]
[400649732,1767766242001,-500.0,0.00024795,2]
[400649733,1767766242011,-2200.51,0.000248,14]
[400649734,1767766242021,-25963.54,0.000248,2]
[400649735,1767766242030,-209.524359,0.000248,7]
[400649736,1767766242040,-209.524359,0.000248,7]
[400649737,1767766242050,-209.524359,0.000248,7]
[400649738,1767766242060,-209.524359,0.000248,7]
[400649739,1767766242070,-241.004676,0.000248,7]
[400649740,1767766242084,-241.004676,0.000248,7]
[400649741,1767766242093,-241.004676,0.000248,7]
[400649742,1767766242103,-1016.281206,0.000248,7]
[400649743,1767766242113,-241.004676,0.000248,7]
[400649744,1767766242122,-1016.281206,0.000248,7]
[400649745,1767766242132,-1016.281206,0.000248,7]
[400649746,1767766242142,-1016.281206,0.000248,7]
[400649747,1767766242152,-530.111159,0.000248,7]
[400649748,1767766242161,-530.111159,0.000248,7]
[400649749,1767766242171,-530.111159,0.000248,7]
[400649750,1767766242181,-530.111159,0.000248,7]
[400649751,1767766242191,-210.572265,0.000248,7]
[400649752,1767766242202,-218.702509,0.000248,7]
[400649753,1767766242212,-210.572265,0.000248,7]
[400649754,1767766242222,-218.702509,0.000248,7]
[400649755,1767766242231,-210.572265,0.000248,7]
[400649756,1767766242241,-218.702509,0.000248,7]
[400649757,1767766242250,-210.572265,0.000248,7]
[400649758,1767766242259,-218.702509,0.000248,7]
[400649759,1767766242269,-151.0,0.000248,7]
[400649760,1767766242278,-184.812283,0.000248,7]
[400649761,1767766242288,-184.812283,0.000248,7]
[400649762,1767766242301,-184.812283,0.000248,7]
[400649763,1767766242310,-184.812283,0.000248,7]
[400649764,1767766242319,-151.0,0.000248,7]
[400649765,1767766242329,-634.815792,0.000248,7]
[400649766,1767766242339,-634.815792,0.000248,7]
[400649767,1767766242348,-634.815792,0.000248,7]
[400649768,1767766242358,-634.815792,0.000248,7]
[400649769,1767766242368,-151.0,0.000248,7]
[400649770,1767766242377,-215.064076,0.000248,7]
[400649771,1767766242387,-151.0,0.000248,7]
[400649772,1767766242396,-215.064076,0.000248,7]
[400649773,1767766242406,-215.064076,0.000248,7]
[400649774,1767766242416,-151.0,0.000248,7]
[400649775,1767766242425,-215.064076,0.000248,7]
[400649776,1767766242435,-151.0,0.000248,7]
[400649777,1767766242444,-151.0,0.000248,7]
[400649778,1767766242454,-151.0,0.000248,7]
[400649779,1767766242462,-151.0,0.000248,7]
[400649780,1767766242472,-151.0,0.000248,7]
[400649781,1767766242481,-205.742012,0.000248,7]
[400649782,1767766242491,-205.742012,0.000248,7]
[400649783,1767766242500,-151.0,0.000248,7]
[400649784,1767766242510,-205.742012,0.000248,7]
[400649785,1767766242519,-151.0,0.000248,7]
[400649786,1767766242528,-205.742012,0.000248,7]
[400649787,1767766242538,-215.570059,0.000248,7]
[400649788,1767766242547,-206.665209,0.000248,7]
[400649789,1767766242556,-215.570059,0.000248,7]
[400649790,1767766242566,-206.665209,0.000248,7]
[400649791,1767766242575,-215.570059,0.000248,7]
[400649792,1767766242584,-206.665209,0.000248,7]
[400649793,1767766242593,-215.570059,0.000248,7]
[400649794,1767766242603,-206.665209,0.000248,7]
[400649795,1767766242612,-20779.1008256,0.000248,2]
[400649796,1767766242621,-390.92977,0.000248,7]
[400649797,1767766242631,-390.92977,0.000248,7]
[400649798,1767766242643,-390.92977,0.000248,7]
[400649799,1767766242652,-390.92977,0.000248,7]
[400649800,1767766242661,-151.0,0.000248,7]
[400649801,1767766242671,-207.061221,0.000248,7]
[400649802,1767766242680,-151.0,0.000248,7]
[400649803,1767766242690,-186.329815,0.000248,7]
[400649804,1767766242700,-186.329815,0.000248,7]
[400649805,1767766242710,-186.329815,0.000248,7]
[400649806,1767766242719,-186.329815,0.000248,7]
[400649807,1767766242728,-440.287203,0.000248,7]
[400649808,1767766242737,-232.576988,0.000248,7]
[400649809,1767766242746,-440.287203,0.000248,7]
[400649810,1767766242755,-151.0,0.000248,7]
[400649811,1767766242764,-440.287203,0.000248,7]
[400649812,1767766242774,-440.287203,0.000248,7]
[400649813,1767766242783,-187.815389,0.000248,7]
[400649814,1767766242792,-187.815389,0.000248,7]
[400649815,1767766242802,-187.815389,0.000248,7]
[400649816,1767766242811,-187.815389,0.000248,7]
[400649817,1767766242820,-164.70126,0.000248,7]
[400649818,1767766242830,-151.0,0.000248,7]
[400649819,1767766242839,-151.0,0.000248,7]
[400649820,1767766242848,-193.751702,0.000248,7]
[400649821,1767766242991,-151.0,0.000248,7]
[400649822,1767766243000,-151.0,0.000248,7]
[400649823,1767766243010,-151.0,0.000248,7]
[400649824,1767766243019,-151.0,0.000248,2]
[400649825,1767766243028,-206.229278,0.000248,7]
[400649826,1767766243038,-206.229278,0.000248,7]
[400649827,1767766243047,-206.229278,0.000248,7]
[400649828,1767766243056,-206.229278,0.000248,7]
[400649829,1767766243065,-2200.0,0.0002486,2]
[400649830,1767766243075,-2000.0,0.00024893,7]
[400649831,1767766243083,-151.0,0.000249,7]
[400649832,1767766243092,-151.0,0.000249,7]
[400649833,1767766243102,-151.0,0.000249,7]
[400649834,1767766243111,-151.0,0.000249,7]
[400649835,1767766243120,-151.0,0.000249,7]
[400649836,1767766243129,-151.0,0.000249,7]
[400649837,1767766243139,-151.0,0.000249,7]
[400649838,1767766243148,-151.0,0.000249,7]
[400649839,1767766243157,-183.522133,0.000249,7]
[400649840,1767766243167,-151.0,0.000249,7]
[400649841,1767766243176,-151.0,0.000249,7]
[400649842,1767766243186,-151.0,0.000249,7]
[400649843,1767766243195,-151.528573,0.000249,7]
[400649844,1767766243205,-151.0,0.000249,7]
[400649845,1767766243214,-151.0,0.000249,7]
[400649846,1767766243224,-151.0,0.000249,7]
[400649847,1767766243233,-151.0,0.000249,7]
[400649848,1767766243243,-151.0,0.000249,7]
[400649849,1767766243252,-151.0,0.000249,7]
[400649850,1767766243261,-151.0,0.000249,7]
[400649851,1767766243270,-151.0,0.000249,7]
[400649852,1767766243279,-206.889733,0.000249,7]
[400649853,1767766243287,-1626.684503,0.000249,7]
[400649854,1767766243297,-1626.684503,0.000249,7]
[400649855,1767766243306,-151.0,0.000249,7]
[400649856,1767766243315,-1626.684503,0.000249,7]
[400649857,1767766243323,-151.0,0.000249,7]
[400649858,1767766243333,-1626.684503,0.000249,7]
[400649859,1767766243341,-151.0,0.000249,7]
[400649860,1767766243350,-289.726143,0.000249,7]
[400649861,1767766243360,-194.927323,0.000249,7]
[400649862,1767766243369,-194.927323,0.000249,7]
[400649863,1767766243380,-194.927323,0.000249,7]
[400649864,1767766243390,-194.927323,0.000249,7]
[400649865,1767766243399,-151.0,0.000249,7]
[400649866,1767766243408,-151.0,0.000249,7]
[400649867,1767766243417,-209.524359,0.000249,7]
[400649868,1767766243426,-209.524359,0.000249,7]
[400649869,1767766243436,-209.524359,0.000249,7]
[400649870,1767766243445,-209.524359,0.000249,7]
[400649871,1767766243455,-241.004676,0.000249,7]
[400649872,1767766243464,-241.004676,0.000249,7]
[400649873,1767766243473,-241.004676,0.000249,7]
[400649874,1767766243482,-1016.281206,0.000249,7]
[400649875,1767766243491,-241.004676,0.000249,7]
[400649876,1767766243501,-1016.281206,0.000249,7]
[400649877,1767766243509,-1016.281206,0.000249,7]
[400649878,1767766243518,-1016.281206,0.000249,7]
[400649879,1767766243528,-530.111159,0.000249,7]
[400649880,1767766243537,-530.111159,0.000249,7]
[400649881,1767766243546,-530.111159,0.000249,7]
[400649882,1767766243555,-530.111159,0.000249,7]
[400649883,1767766243564,-210.572265,0.000249,7]
[400649884,1767766243574,-218.702509,0.000249,7]
[400649885,1767766243583,-210.572265,0.000249,7]
[400649886,1767766243592,-218.702509,0.000249,7]
[400649887,1767766243601,-210.572265,0.000249,7]
[400649888,1767766243610,-218.702509,0.000249,7]
[400649889,1767766243619,-210.572265,0.000249,7]
[400649890,1767766243628,-218.702509,0.000249,7]
[400649891,1767766243637,-179.448151,0.000249,7]
[400649892,1767766243646,-184.812283,0.000249,7]
[400649893,1767766243656,-184.812283,0.000249,7]
[400649894,1767766243665,-184.812283,0.000249,7]
[400649895,1767766243674,-184.812283,0.000249,7]
[400649896,1767766243683,-151.0,0.000249,7]
[400649897,1767766243692,-634.815792,0.000249,7]
[400649898,1767766243701,-634.815792,0.000249,7]
[400649899,1767766243711,-634.815792,0.000249,7]
[400649900,1767766243720,-634.815792,0.000249,7]
[400649901,1767766243729,-151.0,0.000249,7]
[400649902,1767766243738,-215.064076,0.000249,7]
[400649903,1767766243747,-151.0,0.000249,7]
[400649904,1767766243756,-215.064076,0.000249,7]
[400649905,1767766243765,-215.064076,0.000249,7]
[400649906,1767766243774,-151.0,0.000249,7]
[400649907,1767766243783,-215.064076,0.000249,7]
[400649908,1767766243792,-151.0,0.000249,7]
[400649909,1767766243801,-151.0,0.000249,7]
[400649910,1767766243810,-151.0,0.000249,7]
[400649911,1767766243819,-177.524366,0.000249,7]
[400649912,1767766243829,-151.0,0.000249,7]
[400649913,1767766243838,-205.742012,0.000249,7]
[400649914,1767766243847,-205.742012,0.000249,7]
[400649915,1767766243855,-151.0,0.000249,7]
[400649916,1767766243864,-205.742012,0.000249,7]
[400649917,1767766243874,-151.0,0.000249,7]
[400649920,1767766243883,-205.742012,0.000249,7]
[400649921,1767766243892,-215.570059,0.000249,7]
[400649922,1767766243904,-206.665209,0.000249,7]
[400649924,1767766243913,-215.570059,0.000249,7]
[400649925,1767766243922,-206.665209,0.000249,7]
[400649926,1767766243931,-215.570059,0.000249,7]
[400649927,1767766243942,-206.665209,0.000249,7]
[400649930,1767766243951,-215.570059,0.000249,7]
[400649932,1767766243960,-206.665209,0.000249,7]
[400649933,1767766243971,-622309.500941,0.000249,2]
[400649934,1767766243980,-390.92977,0.000249,7]
[400649935,1767766243989,-390.92977,0.000249,7]
[400649936,1767766243998,-390.92977,0.000249,7]
[400649937,1767766244007,-390.92977,0.000249,7]
[400649938,1767766244017,-151.0,0.000249,7]
[400649939,1767766244026,-151.0,0.000249,7]
[400649940,1767766244035,-186.329815,0.000249,7]
[400649941,1767766244044,-186.329815,0.000249,7]
[400649942,1767766244054,-186.329815,0.000249,7]
[400649943,1767766244063,-186.329815,0.000249,7]
[400649944,1767766244072,-440.287203,0.000249,7]
[400649945,1767766244081,-440.287203,0.000249,7]
[400649946,1767766244090,-440.287203,0.000249,7]
[400649947,1767766244099,-440.287203,0.000249,7]
[400649949,1767766244109,-187.815389,0.000249,7]
[400649950,1767766244118,-187.815389,0.000249,7]
[400649951,1767766244128,-187.815389,0.000249,7]
[400649952,1767766244137,-187.815389,0.000249,7]
[400649953,1767766244146,-226.840481,0.000249,7]
[400649954,1767766244156,-237.990209,0.000249,7]
[400649955,1767766244165,-151.0,0.000249,7]
[400649956,1767766244174,-151.0,0.000249,7]
[400649957,1767766244183,-151.0,0.000249,7]
[400649958,1767766244192,-151.0,0.000249,2]
[400649959,1767766244202,-206.229278,0.000249,7]
[400649960,1767766244211,-206.229278,0.000249,7]
[400649961,1767766244220,-206.229278,0.000249,7]
[400649962,1767766244229,-206.229278,0.000249,7]
[400649963,1767766244238,-2200.0,0.00024922,2]
[400649964,1767766244247,-500.0,0.00024932,2]
[400649965,1767766244256,-2200.0,0.00024962,2]
[400649966,1767766244266,-500.0,0.00024994,2]
[400649967,1767766244285,-1000.0,0.00025,2]
[400649968,1767766244295,-1000.0,0.00025,2]
[400649969,1767766244304,-1000.0,0.00025,2]
[400649970,1767766244313,-1000.0,0.00025,2]
[400649971,1767766244322,-1000.0,0.00025,2]
[400649972,1767766244332,-1000.0,0.00025,2]
[400649973,1767766244342,-1000.0,0.00025,2]
[400649974,1767766244351,-1000.0,0.00025,2]
[400649975,1767766244361,-1000.0,0.00025,2]
[400649976,1767766244371,-1000.0,0.00025,2]
[400649977,1767766244381,-500.0,0.00025069,2]
[400649978,1767766244391,-2200.0,0.00025096,7]
[400649979,1767766244402,-500.0,0.00025164,7]
[400649980,1767766244412,-250.0,0.00025205,2]
[400649981,1767766244423,-1181.07580657,0.00025205,2]
[400649982,1767766244433,-500.0,0.00025206,2]
[400649983,1767766244443,-500.0,0.00025343,2]
[400649984,1767766244453,-2200.0,0.00025378,7]
[400649985,1767766244463,-2200.0,0.00025395,7]
[400649986,1767766244473,-500.0,0.0002548,2]
[400649987,1767766244482,-500.0,0.00025617,2]
[400649988,1767766244492,-2000.0,0.00025733,7]
[400649989,1767766244501,-318.0,0.00025752,2]
[400649990,1767766244511,-350.0,0.00025753,2]
[400649991,1767766244523,-509.34709244,0.00025754,2]
[400649992,1767766244534,-2169.79266647,0.00025787,22]
[400649993,1767766244545,-2200.0,0.00025831,7]
[400649994,1767766244556,-1908.17,0.000259,7]
[400649995,1767766244566,-2200.0,0.00025918,7]
[400649996,1767766244576,-500.0,0.00025922,7]
[400649997,1767766244585,-2200.0,0.00025946,7]
[400649998,1767766244595,-409.0,0.00026047,2]
[400649999,1767766244606,-587.58501506,0.00026068,7]
[400650000,1767766244618,-1000.0,0.00026175,30]
[400650001,1767766244628,-1000.0,0.00026175,30]
[400650002,1767766244638,-252.19,0.000262,2]
[400650003,1767766244648,-450.0,0.00026301,2]
[400650004,1767766244658,-346.1,0.00026323,2]
[400650005,1767766244669,-436.5009519,0.00026353,2]
[400650006,1767766244680,-1974.17602471,0.00026413,2]
[400650007,1767766244690,-2000.0,0.00026572,7]
[400650008,1767766244701,-500.0,0.00026578,7]
[400650009,1767766244710,-490.74294289,0.00026749,2]
[400650010,1767766244720,-550.0,0.00026849,2]
[400650011,1767766244729,-258.12,0.000269,7]
[400650012,1767766244738,-243.07,0.000269,7]
[400650013,1767766244748,-500.0,0.00026902,7]
[400650014,1767766244758,-500.0,0.0002699,7]
[400650015,1767766244768,-2200.51,0.00027,14]
[400650016,1767766244778,-25963.54,0.00027,2]
[400650017,1767766244790,-500.0,0.00027112,7]
[400650018,1767766244799,-8045.68317556,0.0002718,2]
[400650019,1767766244809,-2452.87595718,0.0002722,25]
[400650020,1767766244818,-500.0,0.0002727,7]
[400650021,1767766244827,-500.0,0.00027283,7]
[400650022,1767766244837,-1346.23,0.00027397,2]
[400650023,1767766244847,-223.83334036,0.00027397,2]
[400650024,1767766244856,-650.0,0.00027397,5]
[400650025,1767766244865,-154.121516,0.00027397,7]
[400650026,1767766244875,-514.81933417,0.00027397,5]
[400650027,1767766244885,-2000.0,0.00027411,7]
[400650028,1767766244897,-2200.0,0.00027556,7]
[400650029,1767766244906,-1908.17,0.000276,7]
[400650030,1767766244916,-2200.0,0.00027602,7]
[400650031,1767766244926,-2200.0,0.00027797,7]
[400650032,1767766244937,-178.0,0.00027808,26]
[400650033,1767766244946,-346.1,0.00027914,2]
[400650034,1767766244957,-750.0,0.00027945,5]
[400650035,1767766244968,-250.0,0.00027945,5]
[400650036,1767766244977,-250.0,0.00027945,5]
[400650037,1767766244986,-500.0,0.00027984,7]
[400650038,1767766244995,-1020.52354742,0.00028,2]
[400650039,1767766245004,-5000.0,0.00028038,2]
[400650040,1767766245014,-300.0,0.00028055,2]
[400650041,1767766245023,-300.0,0.00028055,2]
[400650042,1767766245033,-300.0,0.00028055,2]
[400650043,1767766245043,-300.0,0.00028055,2]
[400650044,1767766245053,-300.0,0.00028055,2]
[400650045,1767766245063,-300.0,0.00028055,2]
[400650046,1767766245073,-300.0,0.00028082,2]
[400650047,1767766245083,-300.0,0.00028082,2]
[400650048,1767766245093,-2200.0,0.0002815,7]
[400650049,1767766245103,-2000.0,0.0002825,7]
[400650050,1767766245112,-280.28268334,0.00028293,7]
[400650051,1767766245125,-2200.0,0.00028298,7]
[400650052,1767766245135,-151.0,0.00028363,2]
[400650053,1767766245145,-156.587,0.00028363,2]
[400650054,1767766245155,-151.76560532,0.00028363,2]
[400650055,1767766245165,-30000.0,0.00028363,2]
[400650057,1767766245175,-850.0,0.00028493,5]
[400650058,1767766245184,-350.0,0.00028493,5]
[400650059,1767766245193,-350.0,0.00028493,5]
[400650060,1767766245204,-2745.81883424,0.00028653,27]
[400650061,1767766245214,-2200.0,0.00028676,7]
[400650062,1767766245224,-529.82866401,0.00028749,2]
[400650063,1767766245234,-1346.23,0.00028767,4]
[400650064,1767766245244,-797.0,0.00028792,30]
[400650065,1767766245254,-2200.0,0.00028808,7]
[400650066,1767766245264,-2200.0,0.00028818,7]
[400650067,1767766245274,-31110.0,0.00028911,2]
[400650068,1767766245285,-1019.0,0.00029,2]
[400650069,1767766245295,-950.0,0.00029041,5]
[400650070,1767766245304,-450.0,0.00029041,5]
[400650071,1767766245314,-450.0,0.00029041,5]
[400650072,1767766245325,-2000.0,0.0002909,7]
[400650073,1767766245335,-258.12,0.000291,7]
[400650074,1767766245345,-243.07,0.000291,7]
[400650075,1767766245355,-2200.0,0.00029188,7]
[400650076,1767766245365,-2200.51,0.000292,14]
[400650077,1767766245374,-25963.54,0.000292,2]
[400650078,1767766245383,-156.58001189,0.00029334,5]
[400650079,1767766245393,-1908.17,0.000294,7]
[400650080,1767766245403,-32261.07,0.00029459,2]
[400650081,1767766245412,-346.1,0.00029504,3]
[400650082,1767766245424,-1050.0,0.00029589,5]
[400650083,1767766245433,-550.0,0.00029589,5]
[400650084,1767766245443,-550.0,0.00029589,5]
[400650085,1767766245592,-5000.0,0.00029663,2]
[400650086,1767766245602,-8045.68317556,0.00029729,2]
[400650087,1767766245612,-2000.0,0.00029929,7]
[400650088,1767766245622,-200.0,0.0003,7]
[400650089,1767766245631,-184.0,0.0003,14]
[400650090,1767766245640,-1019.0,0.0003,7]
[400650091,1767766245650,-21899.11408481,0.00030007,2]
[400650092,1767766245660,-3048.09934452,0.00030086,30]
[400650093,1767766245672,-2875.33898822,0.000301,7]
[400650094,1767766245681,-2258.47727549,0.00030123,2]
[400650095,1767766245690,-1346.23,0.00030136,6]
[400650096,1767766245700,-1150.0,0.00030137,5]
[400650097,1767766245710,-500.0,0.00030137,15]
[400650098,1767766245719,-650.0,0.00030137,5]
[400650099,1767766245728,-650.0,0.00030137,5]
[400650100,1767766245739,-432.26,0.00030137,8]
[400650101,1767766245748,-1010.0,0.00030137,7]
[400650102,1767766245759,-252.19,0.000302,2]
[400650103,1767766245768,-500.0,0.00030484,7]
[400650104,1767766245778,-2200.0,0.00030535,7]
[400650105,1767766245788,-500.0,0.00030597,7]
[400650106,1767766245798,-2200.0,0.00030629,7]
[400650107,1767766245808,-391.648,0.0003066,26]
[400650108,1767766245819,-184.361,0.0003066,26]
[400650109,1767766245829,-1299.19626571,0.00030685,5]
[400650110,1767766245838,-500.0,0.00030685,15]
[400650111,1767766245847,-750.65512167,0.00030685,5]
[400650112,1767766245857,-750.0,0.00030685,5]
[400650113,1767766245867,-15924.41,0.000307,6]
[400650114,1767766245876,-2200.0,0.00030716,7]
[400650115,1767766245886,-568.91438512,0.00030749,2]
[400650116,1767766245900,-2000.0,0.00030768,7]
[400650117,1767766245911,-2200.0,0.00030931,7]
[400650118,1767766245920,-402.32,0.00030958,30]
[400650119,1767766245930,-200.0,0.00031,7]
[400650120,1767766245941,-191.51603111,0.00031,120]
[400650121,1767766245950,-176.11325056,0.00031,120]
[400650122,1767766245959,-174.41697135,0.00031,120]
[400650123,1767766245969,-163.98489072,0.00031,120]
[400650124,1767766245979,-186.0317041,0.00031,120]
[400650125,1767766245988,-164.04291735,0.00031,120]
[400650126,1767766245997,-206.91086702,0.00031,120]
[400650127,1767766246007,-194.89245098,0.00031,120]
[400650128,1767766246016,-191.73798973,0.00031,120]
[400650129,1767766246026,-190.2708929,0.00031,120]
[400650130,1767766246035,-1981.16465421,0.00031,10]
[400650131,1767766246045,-1019.0,0.00031,7]
[400650133,1767766246055,-500.0,0.00031052,7]